[Event "*** Titled Tuesday 3|2 Blitz"]
[Site "Chess.com"]
[Date "2016.01.05"]
[Round "4"]
[White "Hollywood_Chess"]
[Black "APL2001"]
[Result "1-0"]
[WhiteElo "2114"]
[BlackElo "1994"]
[TimeControl "180+2"]
[EndTime "11:45:41 PST"]
[Termination "Hollywood_Chess won by resignation"]

1. e4 {[%clk 0:03:01.9]} 1... e5 {[%clk 0:02:39]} 2. Nf3 {[%clk 0:02:59.5]} 2...
Nc6 {[%clk 0:02:20.5]} 3. d4 {[%clk 0:03:00]} 3... exd4 {[%clk 0:02:21]} 4. Bc4
{[%clk 0:03:01.2]} 4... Nf6 {[%clk 0:02:19.9]} 5. e5 {[%clk 0:03:01.8]} 5... d5
{[%clk 0:02:13.4]} 6. Bb5 {[%clk 0:03:02.2]} 6... Ne4 {[%clk 0:02:13.2]} 7. Nxd4
{[%clk 0:03:02.9]} 7... Bd7 {[%clk 0:02:14.5]} 8. Bxc6 {[%clk 0:03:03.1]} 8...
bxc6 {[%clk 0:02:15.6]} 9. O-O {[%clk 0:03:03.8]} 9... Be7 {[%clk 0:02:09.7]}
10. f3 {[%clk 0:03:04.5]} 10... Nc5 {[%clk 0:02:10.5]} 11. f4 {[%clk 0:03:05.9]}
11... Ne4 {[%clk 0:02:03.4]} 12. Nc3 {[%clk 0:03:05.7]} 12... Nxc3 {[%clk
0:01:59.3]} 13. bxc3 {[%clk 0:03:06.4]} 13... c5 {[%clk 0:01:57.8]} 14. Nb3
{[%clk 0:03:07.2]} 14... Be6 {[%clk 0:01:46.7]} 15. Be3 {[%clk 0:03:01.3]} 15...
c4 {[%clk 0:01:45.8]} 16. Nd4 {[%clk 0:03:01.9]} 16... c5 {[%clk 0:01:41.9]} 17.
Nc6 {[%clk 0:02:46.2]} 17... Qc7 {[%clk 0:01:37.4]} 18. Nxe7 {[%clk 0:02:46.7]}
18... Kxe7 {[%clk 0:01:38]} 19. f5 {[%clk 0:02:40.7]} 19... d4 {[%clk
0:01:22.3]} 20. fxe6 {[%clk 0:02:36.6]} 20... Qxe5 {[%clk 0:01:07.6]} 21. Bf4
{[%clk 0:02:15.6]} 21... Qd5 {[%clk 0:01:03.2]} 22. exf7 {[%clk 0:02:13.5]}
22... Kxf7 {[%clk 0:01:00.6]} 23. cxd4 {[%clk 0:01:53.3]} 23... Rhe8 {[%clk
0:00:42.9]} 24. dxc5 {[%clk 0:01:49.7]} 24... Qxd1 {[%clk 0:00:40.5]} 25. Raxd1
{[%clk 0:01:49.5]} 25... Rac8 {[%clk 0:00:40.4]} 26. Rd7+ {[%clk 0:01:46.9]}
26... Kg8 {[%clk 0:00:40.9]} 27. Bd6 {[%clk 0:01:47.4]} 27... a5 {[%clk
0:00:37.6]} 28. Rff7 {[%clk 0:01:47.3]} 1-0

[Event "*** Titled Tuesday 3|2 Blitz"]
[Site "Chess.com"]
[Date "2016.01.05"]
[Round "4"]
[White "rdclayton"]
[Black "LyonBeast"]
[Result "0-1"]
[WhiteElo "2117"]
[BlackElo "2783"]
[TimeControl "180+2"]
[EndTime "11:45:51 PST"]
[Termination "LyonBeast won by resignation"]

1. d4 {[%clk 0:03:01.9]} 1... g6 {[%clk 0:03:01.9]} 2. c4 {[%clk 0:03:02.7]}
2... Nf6 {[%clk 0:03:01.3]} 3. Nc3 {[%clk 0:03:02.7]} 3... d5 {[%clk 0:02:54.6]}
4. Nf3 {[%clk 0:03:01.7]} 4... Bg7 {[%clk 0:02:54.8]} 5. Qb3 {[%clk 0:03:02.2]}
5... dxc4 {[%clk 0:02:55.5]} 6. Qxc4 {[%clk 0:03:04.1]} 6... O-O {[%clk
0:02:57.1]} 7. e4 {[%clk 0:03:04.9]} 7... Nc6 {[%clk 0:02:58.7]} 8. d5 {[%clk
0:02:57.5]} 8... Na5 {[%clk 0:02:57.2]} 9. Qb4 {[%clk 0:02:56.2]} 9... c6 {[%clk
0:02:56.2]} 10. Bg5 {[%clk 0:02:35.4]} 10... cxd5 {[%clk 0:02:47.4]} 11. Rd1
{[%clk 0:02:18.7]} 11... Nc6 {[%clk 0:02:43]} 12. Qa4 {[%clk 0:02:12.7]} 12...
Bd7 {[%clk 0:02:34.1]} 13. exd5 {[%clk 0:02:02.1]} 13... Ne5 {[%clk 0:02:29]}
14. Qf4 {[%clk 0:01:52.5]} 14... Nh5 {[%clk 0:02:27.8]} 15. Qe3 {[%clk
0:01:48.4]} 15... Ng4 {[%clk 0:02:24.4]} 16. Qd2 {[%clk 0:01:38.4]} 16... h6
{[%clk 0:02:23.3]} 17. Bh4 {[%clk 0:01:35.9]} 17... g5 {[%clk 0:02:23.4]} 18.
Bg3 {[%clk 0:01:21]} 18... f5 {[%clk 0:02:18.4]} 19. h3 {[%clk 0:00:47.4]} 19...
Nxg3 {[%clk 0:02:16.1]} 20. fxg3 {[%clk 0:00:49.3]} 20... Ne5 {[%clk 0:02:11.5]}
21. Be2 {[%clk 0:00:42.5]} 21... Qb6 {[%clk 0:02:00.5]} 22. h4 {[%clk
0:00:23.6]} 22... Ng4 {[%clk 0:02:00.5]} 23. Nd4 {[%clk 0:00:18.3]} 23... gxh4
{[%clk 0:01:54.4]} 24. Rxh4 {[%clk 0:00:16.4]} 24... Rac8 {[%clk 0:01:50.2]} 25.
Bxg4 {[%clk 0:00:11]} 25... fxg4 {[%clk 0:01:48.9]} 26. Rxh6 {[%clk 0:00:06.5]}
26... Bxh6 {[%clk 0:01:48.9]} 27. Qxh6 {[%clk 0:00:06]} 0-1

[Event "*** Titled Tuesday 3|2 Blitz"]
[Site "Chess.com"]
[Date "2016.01.05"]
[Round "4"]
[White "stepanosinovsky"]
[Black "SmarterChess"]
[Result "1-0"]
[WhiteElo "2228"]
[BlackElo "2128"]
[TimeControl "180+2"]
[EndTime "11:46:04 PST"]
[Termination "stepanosinovsky won by checkmate"]

1. e4 {[%clk 0:03:01.9]} 1... c6 {[%clk 0:03:01.1]} 2. d4 {[%clk 0:02:57]} 2...
d5 {[%clk 0:03:02.1]} 3. exd5 {[%clk 0:02:57.9]} 3... cxd5 {[%clk 0:03:03.4]} 4.
c3 {[%clk 0:02:59]} 4... Nc6 {[%clk 0:03:01.8]} 5. Bf4 {[%clk 0:02:55.7]} 5...
Nf6 {[%clk 0:03:01.1]} 6. Bd3 {[%clk 0:02:54.7]} 6... g6 {[%clk 0:02:56.7]} 7.
Nf3 {[%clk 0:02:54.5]} 7... Bg7 {[%clk 0:02:57.9]} 8. O-O {[%clk 0:02:54.7]}
8... O-O {[%clk 0:02:59.5]} 9. Re1 {[%clk 0:02:54.1]} 9... Bg4 {[%clk
0:03:00.4]} 10. h3 {[%clk 0:02:53.7]} 10... Bf5 {[%clk 0:03:00]} 11. Bxf5 {[%clk
0:02:53.5]} 11... gxf5 {[%clk 0:03:01.9]} 12. Nbd2 {[%clk 0:02:52.5]} 12... e6
{[%clk 0:03:02.3]} 13. Kh1 {[%clk 0:02:44.4]} 13... Kh8 {[%clk 0:03:02]} 14. Rg1
{[%clk 0:02:34.5]} 14... Ne4 {[%clk 0:03:01.3]} 15. Qe2 {[%clk 0:02:33.9]} 15...
b5 {[%clk 0:02:46.1]} 16. g4 {[%clk 0:01:56.3]} 16... fxg4 {[%clk 0:02:41]} 17.
Rxg4 {[%clk 0:01:50.3]} 17... f5 {[%clk 0:02:31.1]} 18. Rg2 {[%clk 0:01:45.2]}
18... b4 {[%clk 0:02:25.9]} 19. Rag1 {[%clk 0:01:40.5]} 19... Bf6 {[%clk
0:02:11.1]} 20. Nxe4 {[%clk 0:01:01.6]} 20... dxe4 {[%clk 0:02:05.5]} 21. Ng5
{[%clk 0:01:01.4]} 21... Qe8 {[%clk 0:01:41]} 22. Qc4 {[%clk 0:00:41.2]} 22...
Bxg5 {[%clk 0:01:06.6]} 23. Rxg5 {[%clk 0:00:37.6]} 23... Rc8 {[%clk 0:01:02.7]}
24. Qxc6 {[%clk 0:00:36]} 24... h6 {[%clk 0:00:56.4]} 25. Be5+ {[%clk 0:00:35]}
25... Kh7 {[%clk 0:00:54]} 26. Rg7+ {[%clk 0:00:36]} 26... Kh8 {[%clk
0:00:54.6]} 27. Rf7# {[%clk 0:00:37.3]} 1-0

[Event "*** Titled Tuesday 3|2 Blitz"]
[Site "Chess.com"]
[Date "2016.01.05"]
[Round "4"]
[White "Dlugy"]
[Black "chessdude"]
[Result "1-0"]
[WhiteElo "2610"]
[BlackElo "2311"]
[TimeControl "180+2"]
[EndTime "11:46:09 PST"]
[Termination "Dlugy won by resignation"]

1. d4 {[%clk 0:03:01.9]} 1... d5 {[%clk 0:02:59]} 2. Bf4 {[%clk 0:03:03.4]} 2...
Nf6 {[%clk 0:02:58]} 3. e3 {[%clk 0:03:04.6]} 3... c5 {[%clk 0:02:58.3]} 4. dxc5
{[%clk 0:03:05.3]} 4... e6 {[%clk 0:02:56.1]} 5. b4 {[%clk 0:03:05.9]} 5... a5
{[%clk 0:02:45.8]} 6. c3 {[%clk 0:03:07.1]} 6... Be7 {[%clk 0:02:46.4]} 7. Nd2
{[%clk 0:02:44.6]} 7... O-O {[%clk 0:02:46.1]} 8. a3 {[%clk 0:02:36.6]} 8... Nc6
{[%clk 0:02:43.5]} 9. Ngf3 {[%clk 0:02:35.9]} 9... Re8 {[%clk 0:02:36.6]} 10.
Bb5 {[%clk 0:02:35.3]} 10... Nh5 {[%clk 0:02:33.9]} 11. O-O {[%clk 0:02:32.6]}
11... Nxf4 {[%clk 0:02:34.3]} 12. exf4 {[%clk 0:02:33.9]} 12... Bd7 {[%clk
0:02:32.8]} 13. Qe2 {[%clk 0:02:30.7]} 13... Bf6 {[%clk 0:02:32]} 14. Bxc6
{[%clk 0:02:25.8]} 14... bxc6 {[%clk 0:02:27.8]} 15. Ne5 {[%clk 0:02:27]} 15...
Qc7 {[%clk 0:02:25]} 16. Ndf3 {[%clk 0:02:25.6]} 16... Bc8 {[%clk 0:02:18.7]}
17. Rfe1 {[%clk 0:02:22.6]} 17... Ba6 {[%clk 0:02:06.8]} 18. Qd2 {[%clk
0:02:23]} 18... Bd8 {[%clk 0:01:56.3]} 19. Nd4 {[%clk 0:02:23.1]} 19... Bb7
{[%clk 0:01:57.4]} 20. g3 {[%clk 0:02:17.8]} 20... f6 {[%clk 0:01:56.5]} 21. Nd3
{[%clk 0:02:13.8]} 21... Qd7 {[%clk 0:01:53.2]} 22. Re3 {[%clk 0:02:07.9]} 22...
Bc8 {[%clk 0:01:39.4]} 23. Rae1 {[%clk 0:02:08.6]} 23... axb4 {[%clk 0:01:27.7]}
24. axb4 {[%clk 0:02:09.5]} 24... Bc7 {[%clk 0:01:16.4]} 25. Qe2 {[%clk
0:01:52.3]} 25... Ra3 {[%clk 0:01:01.6]} 26. Rxe6 {[%clk 0:01:43.6]} 26... Rxe6
{[%clk 0:01:01.7]} 27. Nxe6 {[%clk 0:01:44.9]} 27... Qxe6 {[%clk 0:01:01.9]} 28.
Qxe6+ {[%clk 0:01:45.8]} 28... Bxe6 {[%clk 0:01:03.4]} 29. Rxe6 {[%clk
0:01:46.9]} 29... Rxc3 {[%clk 0:01:05]} 30. Rxc6 {[%clk 0:01:47.9]} 30... Rxd3
{[%clk 0:01:03.3]} 31. Rxc7 {[%clk 0:01:49.2]} 31... Rb3 {[%clk 0:01:02.4]} 32.
c6 {[%clk 0:01:44.2]} 32... Rc3 {[%clk 0:00:54.1]} 33. b5 {[%clk 0:01:43.5]}
33... d4 {[%clk 0:00:55.6]} 34. Rd7 {[%clk 0:01:44.5]} 34... d3 {[%clk
0:00:56.3]} 35. Kg2 {[%clk 0:01:36.6]} 35... Kf8 {[%clk 0:00:56.5]} 36. Kf3
{[%clk 0:01:32.6]} 36... Ke8 {[%clk 0:00:56.7]} 37. Ke3 {[%clk 0:01:32.4]} 37...
Rc5 {[%clk 0:00:56.1]} 38. Rxg7 {[%clk 0:01:33.2]} 38... Rxb5 {[%clk 0:00:51.9]}
39. c7 {[%clk 0:01:34.4]} 1-0

[Event "*** Titled Tuesday 3|2 Blitz"]
[Site "Chess.com"]
[Date "2016.01.05"]
[Round "4"]
[White "THORK"]
[Black "levallem"]
[Result "1-0"]
[WhiteElo "2163"]
[BlackElo "2150"]
[TimeControl "180+2"]
[EndTime "11:46:12 PST"]
[Termination "THORK won by checkmate"]

1. e3 {[%clk 0:03:00.2]} 1... c5 {[%clk 0:02:59.9]} 2. a3 {[%clk 0:02:59.1]}
2... d5 {[%clk 0:03:00.4]} 3. d4 {[%clk 0:02:58.7]} 3... cxd4 {[%clk 0:03:00.4]}
4. exd4 {[%clk 0:02:59.6]} 4... Nf6 {[%clk 0:03:01.9]} 5. Nf3 {[%clk 0:03:00]}
5... Nc6 {[%clk 0:03:02.5]} 6. b4 {[%clk 0:03:00.5]} 6... Bg4 {[%clk 0:02:55.3]}
7. b5 {[%clk 0:02:58.5]} 7... Nb8 {[%clk 0:02:49.6]} 8. a4 {[%clk 0:02:55.9]}
8... e6 {[%clk 0:02:50.2]} 9. h3 {[%clk 0:02:54.5]} 9... Bh5 {[%clk 0:02:43.7]}
10. Bd3 {[%clk 0:02:55.6]} 10... Nbd7 {[%clk 0:02:41.5]} 11. O-O {[%clk
0:02:53.3]} 11... Rc8 {[%clk 0:02:34.4]} 12. Re1 {[%clk 0:02:50.2]} 12... Bd6
{[%clk 0:02:26.6]} 13. Bg5 {[%clk 0:02:45.2]} 13... O-O {[%clk 0:02:16.9]} 14.
Nbd2 {[%clk 0:02:46.3]} 14... Bxf3 {[%clk 0:02:11.4]} 15. Nxf3 {[%clk
0:02:45.8]} 15... h6 {[%clk 0:02:12.5]} 16. Bh4 {[%clk 0:02:42.6]} 16... Rc3
{[%clk 0:02:11]} 17. Qd2 {[%clk 0:02:38.7]} 17... Qc7 {[%clk 0:02:07.5]} 18. Re2
{[%clk 0:02:32]} 18... Rc8 {[%clk 0:02:06.9]} 19. Rae1 {[%clk 0:02:31.2]} 19...
Bf4 {[%clk 0:02:02.4]} 20. Qd1 {[%clk 0:02:29.7]} 20... g5 {[%clk 0:02:02.4]}
21. Bg3 {[%clk 0:02:26.5]} 21... Bxg3 {[%clk 0:02:03.4]} 22. fxg3 {[%clk
0:02:28]} 22... Qxg3 {[%clk 0:02:05.2]} 23. Ne5 {[%clk 0:02:06]} 23... Nxe5
{[%clk 0:01:57.3]} 24. dxe5 {[%clk 0:02:07.2]} 24... Nd7 {[%clk 0:01:53.5]} 25.
Re3 {[%clk 0:02:00.1]} 25... Qf4 {[%clk 0:01:51.4]} 26. g3 {[%clk 0:01:56.6]}
26... Qxa4 {[%clk 0:01:49.3]} 27. Qh5 {[%clk 0:01:51.4]} 27... Kg7 {[%clk
0:01:35]} 28. h4 {[%clk 0:01:42.1]} 28... g4 {[%clk 0:01:11.5]} 29. Rf1 {[%clk
0:01:37.1]} 29... Rf8 {[%clk 0:01:10.4]} 30. Rf4 {[%clk 0:01:24.5]} 30... Qa1+
{[%clk 0:00:56.9]} 31. Kg2 {[%clk 0:01:22.5]} 31... f5 {[%clk 0:00:57]} 32.
exf6+ {[%clk 0:01:20.7]} 32... Nxf6 {[%clk 0:00:57.3]} 33. Qg6+ {[%clk
0:01:18.8]} 33... Kh8 {[%clk 0:00:53.7]} 34. Rxf6 {[%clk 0:01:15.5]} 34... Rxf6
{[%clk 0:00:46.4]} 35. Qh7# {[%clk 0:01:15.9]} 1-0

[Event "*** Titled Tuesday 3|2 Blitz"]
[Site "Chess.com"]
[Date "2016.01.05"]
[Round "4"]
[White "TheLancer"]
[Black "Boryboy"]
[Result "1-0"]
[WhiteElo "2399"]
[BlackElo "2499"]
[TimeControl "180+2"]
[EndTime "11:46:32 PST"]
[Termination "TheLancer won by resignation"]

1. e4 {[%clk 0:03:01.9]} 1... e6 {[%clk 0:03:00.2]} 2. d4 {[%clk 0:03:00.9]}
2... d5 {[%clk 0:03:01]} 3. Nc3 {[%clk 0:03:02.3]} 3... Nf6 {[%clk 0:03:01.1]}
4. Bg5 {[%clk 0:03:02]} 4... dxe4 {[%clk 0:03:00]} 5. Nxe4 {[%clk 0:03:01.3]}
5... Be7 {[%clk 0:03:01.4]} 6. Nxf6+ {[%clk 0:02:49.6]} 6... Bxf6 {[%clk
0:03:02]} 7. Bxf6 {[%clk 0:02:46.5]} 7... Qxf6 {[%clk 0:03:03.9]} 8. Nf3 {[%clk
0:02:47.2]} 8... Nd7 {[%clk 0:03:03.9]} 9. Qd2 {[%clk 0:02:36]} 9... c5 {[%clk
0:03:01.3]} 10. O-O-O {[%clk 0:02:30]} 10... cxd4 {[%clk 0:03:01.8]} 11. Qxd4
{[%clk 0:02:27.2]} 11... Qxd4 {[%clk 0:03:00.9]} 12. Nxd4 {[%clk 0:02:28.3]}
12... a6 {[%clk 0:03:01.9]} 13. g3 {[%clk 0:02:26.4]} 13... Rb8 {[%clk
0:02:59.5]} 14. Bg2 {[%clk 0:02:26.5]} 14... Nf6 {[%clk 0:02:59.8]} 15. Rhe1
{[%clk 0:02:18.3]} 15... O-O {[%clk 0:02:59.8]} 16. Nf3 {[%clk 0:02:12]} 16...
Bd7 {[%clk 0:02:51.8]} 17. Ne5 {[%clk 0:02:10.9]} 17... Rfd8 {[%clk 0:02:53]}
18. Rd2 {[%clk 0:02:01.2]} 18... Be8 {[%clk 0:02:51.3]} 19. Rxd8 {[%clk
0:01:56.5]} 19... Rxd8 {[%clk 0:02:52.5]} 20. Bxb7 {[%clk 0:01:58.1]} 20... a5
{[%clk 0:02:50.7]} 21. Bf3 {[%clk 0:01:51.3]} 21... Kf8 {[%clk 0:02:48.2]} 22.
b3 {[%clk 0:01:46]} 22... h5 {[%clk 0:02:45.1]} 23. h4 {[%clk 0:01:45.6]} 23...
Ke7 {[%clk 0:02:39.8]} 24. Nc6+ {[%clk 0:01:28.4]} 24... Bxc6 {[%clk 0:02:40.5]}
25. Bxc6 {[%clk 0:01:30.3]} 25... Rc8 {[%clk 0:02:36.4]} 26. Bf3 {[%clk
0:01:29.2]} 26... Kd6 {[%clk 0:02:35.9]} 27. Kb2 {[%clk 0:01:26.5]} 27... Kc5
{[%clk 0:02:35.3]} 28. Bxh5 {[%clk 0:01:21.3]} 28... Rd8 {[%clk 0:02:33.3]} 29.
Rd1 {[%clk 0:01:15.9]} 29... Rb8 {[%clk 0:02:30.1]} 30. Bxf7 {[%clk 0:01:14.4]}
30... e5 {[%clk 0:02:31]} 31. Bg6 {[%clk 0:01:09.4]} 31... a4 {[%clk 0:02:31.4]}
32. a3 {[%clk 0:01:07.9]} 32... Ng4 {[%clk 0:02:26.5]} 33. b4+ {[%clk 0:01:07]}
33... Kc6 {[%clk 0:02:23.7]} 34. Be4+ {[%clk 0:01:04.2]} 34... Kc7 {[%clk
0:02:25.1]} 35. f3 {[%clk 0:01:01]} 35... Nf6 {[%clk 0:02:26.3]} 36. g4 {[%clk
0:00:59.2]} 36... Nd7 {[%clk 0:02:27.6]} 37. Rd5 {[%clk 0:00:58.1]} 37... Nb6
{[%clk 0:02:28.7]} 38. Rc5+ {[%clk 0:00:58.2]} 38... Kd7 {[%clk 0:02:29.3]} 39.
Bd3 {[%clk 0:00:58.9]} 39... Kd6 {[%clk 0:02:29.6]} 40. h5 {[%clk 0:00:57.6]}
40... Rf8 {[%clk 0:02:27.2]} 41. Be4 {[%clk 0:00:54.6]} 41... Rb8 {[%clk
0:02:28.3]} 42. c4 {[%clk 0:00:50.3]} 42... Nd7 {[%clk 0:02:29.2]} 43. Rd5+
{[%clk 0:00:50.8]} 43... Ke7 {[%clk 0:02:30.4]} 44. c5 {[%clk 0:00:49.4]} 44...
Ke6 {[%clk 0:02:28.6]} 45. Rd6+ {[%clk 0:00:49.6]} 45... Ke7 {[%clk 0:02:29.6]}
46. Bf5 {[%clk 0:00:49.8]} 46... Nxc5 {[%clk 0:02:29.6]} 47. Rd5 {[%clk
0:00:45.5]} 47... Nb3 {[%clk 0:02:28.8]} 48. Rxe5+ {[%clk 0:00:45.3]} 48... Kd6
{[%clk 0:02:30.5]} 49. Re6+ {[%clk 0:00:45.2]} 49... Kd5 {[%clk 0:02:32]} 50.
Rg6 {[%clk 0:00:43.1]} 50... Nd4 {[%clk 0:02:30.4]} 51. Be4+ {[%clk 0:00:43.7]}
51... Ke5 {[%clk 0:02:28.1]} 52. Rxg7 {[%clk 0:00:44]} 52... Rc8 {[%clk
0:02:26.4]} 53. h6 {[%clk 0:00:43.9]} 53... Ne6 {[%clk 0:02:24.9]} 54. Re7
{[%clk 0:00:43.6]} 54... Kf6 {[%clk 0:02:25.7]} 55. Rxe6+ {[%clk 0:00:44.7]}
55... Kxe6 {[%clk 0:02:27.2]} 56. Bf5+ {[%clk 0:00:46]} 1-0

[Event "*** Titled Tuesday 3|2 Blitz"]
[Site "Chess.com"]
[Date "2016.01.05"]
[Round "4"]
[White "swayamsm"]
[Black "AvitalBor"]
[Result "1-0"]
[WhiteElo "2541"]
[BlackElo "2342"]
[TimeControl "180+2"]
[EndTime "11:46:57 PST"]
[Termination "swayamsm won by resignation"]

1. d4 {[%clk 0:03:01.9]} 1... Nf6 {[%clk 0:03:00.3]} 2. c4 {[%clk 0:03:03.8]}
2... e6 {[%clk 0:03:00.8]} 3. Nc3 {[%clk 0:03:05.3]} 3... Bb4 {[%clk 0:03:01.2]}
4. e3 {[%clk 0:03:06.6]} 4... O-O {[%clk 0:02:58.6]} 5. Ne2 {[%clk 0:03:08.5]}
5... Re8 {[%clk 0:02:57.7]} 6. a3 {[%clk 0:03:08.9]} 6... Bf8 {[%clk 0:02:59.3]}
7. d5 {[%clk 0:03:07.1]} 7... exd5 {[%clk 0:02:55.8]} 8. cxd5 {[%clk 0:03:09]}
8... d6 {[%clk 0:02:46.6]} 9. g3 {[%clk 0:03:10.4]} 9... Bg4 {[%clk 0:02:36.1]}
10. Bg2 {[%clk 0:03:09.7]} 10... Nbd7 {[%clk 0:02:36.6]} 11. h3 {[%clk
0:03:10.5]} 11... Bf5 {[%clk 0:02:33.8]} 12. g4 {[%clk 0:03:07.1]} 12... Bg6
{[%clk 0:02:32.8]} 13. O-O {[%clk 0:03:05.3]} 13... Ne4 {[%clk 0:02:23.9]} 14.
Nxe4 {[%clk 0:02:55.7]} 14... Bxe4 {[%clk 0:02:25.8]} 15. f3 {[%clk 0:02:51.9]}
15... Bg6 {[%clk 0:02:26.1]} 16. e4 {[%clk 0:02:53.1]} 16... Be7 {[%clk
0:02:11]} 17. f4 {[%clk 0:02:46.1]} 17... h6 {[%clk 0:02:11.5]} 18. Be3 {[%clk
0:02:43.9]} 18... Bh4 {[%clk 0:02:06.5]} 19. Qd3 {[%clk 0:02:29]} 19... f6
{[%clk 0:01:52.8]} 20. Rac1 {[%clk 0:02:25.3]} 20... b6 {[%clk 0:01:48.1]} 21.
b4 {[%clk 0:02:22]} 21... Qe7 {[%clk 0:01:44.3]} 22. Rxc7 {[%clk 0:02:15.2]}
22... Bxe4 {[%clk 0:01:44.1]} 23. Bxe4 {[%clk 0:02:08.2]} 23... Qxe4 {[%clk
0:01:44.5]} 24. Qxe4 {[%clk 0:02:10.1]} 24... Rxe4 {[%clk 0:01:43.3]} 25. Rxd7
{[%clk 0:02:08.8]} 25... Rxe3 {[%clk 0:01:44]} 26. Nd4 {[%clk 0:02:09.2]} 26...
Rxh3 {[%clk 0:01:37.9]} 27. Nf5 {[%clk 0:02:08.1]} 27... Re8 {[%clk 0:01:27.8]}
28. Kg2 {[%clk 0:02:05.5]} 28... Rd3 {[%clk 0:01:23.4]} 29. Nxh4 {[%clk
0:02:05.1]} 29... Rxd5 {[%clk 0:01:23.7]} 30. Nf5 {[%clk 0:02:03.6]} 30... Rd3
{[%clk 0:01:22.1]} 31. Rxg7+ {[%clk 0:02:03.7]} 31... Kf8 {[%clk 0:01:22.4]} 32.
Rh7 {[%clk 0:02:00.2]} 32... Re2+ {[%clk 0:01:20.1]} 33. Rf2 {[%clk 0:02:01.1]}
33... Re1 {[%clk 0:01:21]} 34. Rxh6 {[%clk 0:01:57.9]} 34... Kf7 {[%clk
0:01:19.7]} 35. Rh7+ {[%clk 0:01:58.4]} 35... Ke8 {[%clk 0:01:18.5]} 36. Rxa7
{[%clk 0:01:58.7]} 36... Rdd1 {[%clk 0:01:17.9]} 37. Rc2 {[%clk 0:01:51.3]}
37... Rg1+ {[%clk 0:01:16.4]} 38. Kf3 {[%clk 0:01:51.8]} 38... Kd8 {[%clk
0:01:10.9]} 39. Rh2 {[%clk 0:01:48]} 39... Rgf1+ {[%clk 0:01:08.2]} 40. Rf2
{[%clk 0:01:29]} 40... Rh1 {[%clk 0:01:08.7]} 41. Ng3 {[%clk 0:01:21.9]} 41...
Rh3 {[%clk 0:00:59.8]} 42. Kg2 {[%clk 0:01:22.8]} 42... Rh4 {[%clk 0:00:59.9]}
43. g5 {[%clk 0:01:20.8]} 1-0

[Event "*** Titled Tuesday 3|2 Blitz"]
[Site "Chess.com"]
[Date "2016.01.05"]
[Round "4"]
[White "TomsKantans"]
[Black "ER404"]
[Result "1-0"]
[WhiteElo "2330"]
[BlackElo "2128"]
[TimeControl "180+2"]
[EndTime "11:46:59 PST"]
[Termination "TomsKantans won by checkmate"]

1. e4 {[%clk 0:03:01.9]} 1... c5 {[%clk 0:03:00.6]} 2. Nf3 {[%clk 0:03:02.7]}
2... Nc6 {[%clk 0:03:01.2]} 3. d4 {[%clk 0:03:02.6]} 3... cxd4 {[%clk
0:03:03.1]} 4. Nxd4 {[%clk 0:03:04.5]} 4... e5 {[%clk 0:03:03.7]} 5. Nb5 {[%clk
0:03:04.2]} 5... d6 {[%clk 0:03:04.7]} 6. c4 {[%clk 0:03:02.5]} 6... Be7 {[%clk
0:03:04.6]} 7. g3 {[%clk 0:02:52.6]} 7... f5 {[%clk 0:03:03]} 8. Bg2 {[%clk
0:02:52.8]} 8... Nf6 {[%clk 0:03:00.5]} 9. exf5 {[%clk 0:02:44.3]} 9... Bxf5
{[%clk 0:02:59.2]} 10. O-O {[%clk 0:02:45]} 10... O-O {[%clk 0:02:59.5]} 11.
N1c3 {[%clk 0:02:39]} 11... a6 {[%clk 0:02:59.9]} 12. Na3 {[%clk 0:02:40.3]}
12... Qd7 {[%clk 0:02:42.5]} 13. Nd5 {[%clk 0:02:29]} 13... Bd8 {[%clk
0:02:22.9]} 14. Bg5 {[%clk 0:02:15.5]} 14... Nd4 {[%clk 0:02:15.1]} 15. Bxf6
{[%clk 0:02:10.9]} 15... gxf6 {[%clk 0:02:11.3]} 16. Qd2 {[%clk 0:01:55.7]}
16... Bh3 {[%clk 0:01:43.9]} 17. Nc2 {[%clk 0:01:52.6]} 17... Bxg2 {[%clk
0:01:33.6]} 18. Kxg2 {[%clk 0:01:52.6]} 18... Ne6 {[%clk 0:01:04]} 19. a4 {[%clk
0:01:41.8]} 19... f5 {[%clk 0:01:02]} 20. f4 {[%clk 0:01:36.2]} 20... Rc8 {[%clk
0:00:39.7]} 21. b3 {[%clk 0:01:28.1]} 21... exf4 {[%clk 0:00:20.5]} 22. Nxf4
{[%clk 0:01:26.2]} 22... Nxf4+ {[%clk 0:00:10.4]} 23. Qxf4 {[%clk 0:01:21]}
23... Qc6+ {[%clk 0:00:10.8]} 24. Qf3 {[%clk 0:01:17.6]} 24... Qe4 {[%clk
0:00:09.4]} 25. Ne3 {[%clk 0:01:09.5]} 25... Re8 {[%clk 0:00:03.8]} 26. Nxf5
{[%clk 0:01:04.7]} 26... Bb6 {[%clk 0:00:02.5]} 27. Rae1 {[%clk 0:00:52.5]}
27... Qxe1 {[%clk 0:00:02.9]} 28. Nh6+ {[%clk 0:00:46.6]} 28... Kh8 {[%clk
0:00:02.6]} 29. Qf6# {[%clk 0:00:47.3]} 1-0

[Event "*** Titled Tuesday 3|2 Blitz"]
[Site "Chess.com"]
[Date "2016.01.05"]
[Round "4"]
[White "pKiLz5Rn9b"]
[Black "AsafGivon"]
[Result "1/2-1/2"]
[WhiteElo "2349"]
[BlackElo "2274"]
[TimeControl "180+2"]
[EndTime "11:47:36 PST"]
[Termination "Game drawn by agreement"]

1. e4 {[%clk 0:03:01.9]} 1... e5 {[%clk 0:02:58.5]} 2. Nf3 {[%clk 0:02:57]} 2...
Nc6 {[%clk 0:02:59.4]} 3. Bc4 {[%clk 0:02:57.8]} 3... Bc5 {[%clk 0:02:57.9]} 4.
c3 {[%clk 0:02:59]} 4... Nf6 {[%clk 0:02:58.2]} 5. d3 {[%clk 0:03:00.4]} 5... d6
{[%clk 0:02:56.5]} 6. Nbd2 {[%clk 0:02:58.9]} 6... a6 {[%clk 0:02:53]} 7. h3
{[%clk 0:02:57.5]} 7... Be6 {[%clk 0:02:43.2]} 8. Bb3 {[%clk 0:02:56]} 8... Qd7
{[%clk 0:02:42.4]} 9. Qe2 {[%clk 0:02:56.5]} 9... O-O-O {[%clk 0:02:40.5]} 10.
Nf1 {[%clk 0:02:47.8]} 10... h6 {[%clk 0:02:40.3]} 11. Be3 {[%clk 0:02:45.6]}
11... Bxe3 {[%clk 0:02:36.4]} 12. fxe3 {[%clk 0:02:42.7]} 12... d5 {[%clk
0:02:32.4]} 13. exd5 {[%clk 0:02:44.1]} 13... Nxd5 {[%clk 0:02:33]} 14. O-O-O
{[%clk 0:02:30.8]} 14... f6 {[%clk 0:02:24.4]} 15. Ng3 {[%clk 0:02:08.8]} 15...
Kb8 {[%clk 0:02:25.3]} 16. Rhe1 {[%clk 0:02:09.4]} 16... Nb6 {[%clk 0:02:11.1]}
17. Qc2 {[%clk 0:02:03.6]} 17... Na5 {[%clk 0:01:54.3]} 18. Bxe6 {[%clk
0:01:54.8]} 18... Qxe6 {[%clk 0:01:56.2]} 19. Kb1 {[%clk 0:01:55]} 19... c5
{[%clk 0:01:53]} 20. d4 {[%clk 0:01:50.9]} 20... cxd4 {[%clk 0:00:46.7]} 21.
exd4 {[%clk 0:01:51.9]} 21... Nc6 {[%clk 0:00:48.1]} 22. dxe5 {[%clk 0:01:50.9]}
22... fxe5 {[%clk 0:00:48]} 23. Qe4 {[%clk 0:01:47.4]} 23... Nd5 {[%clk
0:00:45.1]} 24. Nd4 {[%clk 0:01:19.1]} 24... Nxd4 {[%clk 0:00:21.1]} 25. cxd4
{[%clk 0:01:21]} 25... Ka8 {[%clk 0:00:15.4]} 26. dxe5 {[%clk 0:01:17.7]} 26...
Rhe8 {[%clk 0:00:14.8]} 27. Qd4 {[%clk 0:00:58]} 27... Qg6+ {[%clk 0:00:15.5]}
28. Ne4 {[%clk 0:00:58.6]} 28... Nc3+ {[%clk 0:00:11.3]} 29. Qxc3 {[%clk
0:00:50.8]} 29... Rxd1+ {[%clk 0:00:13.2]} 30. Rxd1 {[%clk 0:00:52.7]} 30...
Qxe4+ {[%clk 0:00:14.5]} 31. Qd3 {[%clk 0:00:30]} 31... Qxe5 {[%clk 0:00:10.9]}
1/2-1/2